{"text_format":"3","workbook":"xlsx","n_sheets":2,"sheets":["Obrazec ponudbe","Pregled stroškov"],"not_rendered":{"charts":1,"images":2,"defined_names":4},"read":"whole","date_system":"1900"}

{"sheet":"Obrazec ponudbe","index":0,"n_rows":48,"n_cols":7,"rows_kept":48,"merged":[[15,1,25,5],[29,1,31,5],[35,1,37,5],[43,1,45,5]]}
[]
[null,"OBRAZEC PONUDBE GRADNJE",{"$nulls":4}," "]
[]
[]
[null,"PODATKI O LASTNIKU",null,null,"PODATKI O IZVAJALCU"]
[null,"Ime","Janko Cajhen",null,"Podjetje","Tovarna, d.d."]
[null,"Naslov","123 Škarnice – Glavna ul.",null,"Ime","Andrej Koklič"]
[null,"[Mesto, država, poštna številka]","12345 Livada",null,"Naslov","321 Južna ulica"]
[null,"Telefon",8885550111,null,"[Mesto, država, poštna številka]","12345 Livada"]
[null,"E-pošta","jaka@proseware.com",null,"Telefon",8885550123]
[{"$nulls":4},"E-pošta","janko@fabrikam.com"]
[null,"Ime projekta","Stopnišče do poslovanja",null,"Datum zaključka","2013-07-14"]
[]
[null,"OBSEG DELA"]
[]
[null,"Obseg projekta dela vnesite tu. Vnesite vse želene specifikacije. To bo poskusni projekt gradnje velikega stopnišča. Za gradnjo okvirja bomo uporabili le les 2 x 4 in 2 x 8 in nosilce za tramove. Stopnice bodo izrezane iz materiala 2 x 4. Uporabljeni bodo vijaki, dolgi vsaj 5 cm.  Žeblji ne bodo cenejši od 10 centov. Vsaka stopnica bo zdržala najmanj 227 kg. Stopnice bodo v ravnini z že obstoječimi v hiši. Na hišo bo pričvrščena nastopna plošča. Izvajalec bo poskrbel za čiščenje po koncu del."]
{"$rows_empty":11}
[null,"NI ZAJETO"]
[]
[null,"Ne bo nameščenih tirov. Gradbišče pripravi lastnik. Stopnice bo prebarval lastnik."]
[]
[]
[]
[null,"PREDLOG PODJETJA"]
[]
[null,"Mi, Tovarna, d.d., predlagani zgornji obseg dela, ki bo dokončano 14. 7. 2011. Znesek bo 476,43 EUR."]
[]
[]
[]
[null,"Poslal (predstavnik podjetja)",{"$nulls":3},"Datum"]
[]
[null,"POTRDITEV LASTNIKA"]
[]
[null,"Jaz, Janko Cajhen, sprejemam zgoraj navedeni obseg dela, ki bo dokončano do 14. 7. 2011 v znesku 476,43 EUR."]
[]
[]
[]
[null,"Poslal (lastnik doma ali pooblaščeni predstavnik)",{"$nulls":3},"Datum"]

{"sheet":"Pregled stroškov","index":1,"n_rows":47,"n_cols":6,"rows_kept":47,"merged":[[42,3,42,4],[43,3,43,4],[44,3,44,4],[45,3,45,4],[46,3,46,4],[47,3,47,4],[48,3,48,4],[49,3,49,4]]}
[]
[null,"POVZETEK STROŠKOV V PONUDBI",{"$nulls":3}," "]
[]
[]
[null,"SEZNAM MATERIALOV IN STROŠKOV"]
[]
[null,"Količina","Opis","Stroški","Skupaj"," "]
[null,5,"2 x 8 x 10 lesa",{"v":6.75,"d":"6.75 €"},{"$f":"ElementiPonudbe[Stroški]*ElementiPonudbe[Količina]","v":{"v":33.75,"d":"33.75 €"}},{"$f":"_xlfn.RANK.EQ(ElementiPonudbe[[#This Row],[Skupaj]],ElementiPonudbe[Skupaj])","v":4}]
[null,20,"2 x 8 x 10 lesa",{"v":4.97,"d":"4.97 €"},{"$f":"ElementiPonudbe[Stroški]*ElementiPonudbe[Količina]","v":{"v":99.39999999999999,"d":"99.40 €"}},{"$f":"_xlfn.RANK.EQ(ElementiPonudbe[[#This Row],[Skupaj]],ElementiPonudbe[Skupaj])","v":2}]
[null,30,"Nosilci za tramove",{"v":2.49,"d":"2.49 €"},{"$f":"ElementiPonudbe[Stroški]*ElementiPonudbe[Količina]","v":{"v":74.7,"d":"74.70 €"}},{"$f":"_xlfn.RANK.EQ(ElementiPonudbe[[#This Row],[Skupaj]],ElementiPonudbe[Skupaj])","v":3}]
[null,2,"Škatla vijakov, 5 cm",{"v":6.67,"d":"6.67 €"},{"$f":"ElementiPonudbe[Stroški]*ElementiPonudbe[Količina]","v":{"v":13.34,"d":"13.34 €"}},{"$f":"_xlfn.RANK.EQ(ElementiPonudbe[[#This Row],[Skupaj]],ElementiPonudbe[Skupaj])","v":6}]
[null,2,"Škatla žebljev, 10 centov",{"v":3.25,"d":"3.25 €"},{"$f":"ElementiPonudbe[Stroški]*ElementiPonudbe[Količina]","v":{"v":6.5,"d":"6.50 €"}},{"$f":"_xlfn.RANK.EQ(ElementiPonudbe[[#This Row],[Skupaj]],ElementiPonudbe[Skupaj])","v":7}]
[null,2,"Rokavice, usnjene",{"v":7.75,"d":"7.75 €"},{"$f":"ElementiPonudbe[Stroški]*ElementiPonudbe[Količina]","v":{"v":15.5,"d":"15.50 €"}},{"$f":"_xlfn.RANK.EQ(ElementiPonudbe[[#This Row],[Skupaj]],ElementiPonudbe[Skupaj])","v":5}]
[null,2,"Stroški delavcev",{"v":100,"d":"100.00 €"},{"$f":"ElementiPonudbe[Stroški]*ElementiPonudbe[Količina]","v":{"v":200,"d":"200.00 €"}},{"$f":"_xlfn.RANK.EQ(ElementiPonudbe[[#This Row],[Skupaj]],ElementiPonudbe[Skupaj])","v":1}]
[{"$nulls":4},{"$f":"ElementiPonudbe[Stroški]*ElementiPonudbe[Količina]","v":0},{"$f":"_xlfn.RANK.EQ(ElementiPonudbe[[#This Row],[Skupaj]],ElementiPonudbe[Skupaj])","v":8}]
[{"$nulls":4},{"$f":"ElementiPonudbe[Stroški]*ElementiPonudbe[Količina]","v":0},{"$f":"_xlfn.RANK.EQ(ElementiPonudbe[[#This Row],[Skupaj]],ElementiPonudbe[Skupaj])","v":8}]
[{"$nulls":4},{"$f":"ElementiPonudbe[Stroški]*ElementiPonudbe[Količina]","v":0},{"$f":"_xlfn.RANK.EQ(ElementiPonudbe[[#This Row],[Skupaj]],ElementiPonudbe[Skupaj])","v":8}]
[{"$nulls":4},{"$f":"ElementiPonudbe[Stroški]*ElementiPonudbe[Količina]","v":0},{"$f":"_xlfn.RANK.EQ(ElementiPonudbe[[#This Row],[Skupaj]],ElementiPonudbe[Skupaj])","v":8}]
[{"$nulls":4},{"$f":"ElementiPonudbe[Stroški]*ElementiPonudbe[Količina]","v":0},{"$f":"_xlfn.RANK.EQ(ElementiPonudbe[[#This Row],[Skupaj]],ElementiPonudbe[Skupaj])","v":8}]
[{"$nulls":4},{"$f":"ElementiPonudbe[Stroški]*ElementiPonudbe[Količina]","v":0},{"$f":"_xlfn.RANK.EQ(ElementiPonudbe[[#This Row],[Skupaj]],ElementiPonudbe[Skupaj])","v":8}]
[{"$nulls":4},{"$f":"ElementiPonudbe[Stroški]*ElementiPonudbe[Količina]","v":0},{"$f":"_xlfn.RANK.EQ(ElementiPonudbe[[#This Row],[Skupaj]],ElementiPonudbe[Skupaj])","v":8}]
[{"$nulls":4},{"$f":"ElementiPonudbe[Stroški]*ElementiPonudbe[Količina]","v":0},{"$f":"_xlfn.RANK.EQ(ElementiPonudbe[[#This Row],[Skupaj]],ElementiPonudbe[Skupaj])","v":8}]
[{"$nulls":4},{"$f":"ElementiPonudbe[Stroški]*ElementiPonudbe[Količina]","v":0},{"$f":"_xlfn.RANK.EQ(ElementiPonudbe[[#This Row],[Skupaj]],ElementiPonudbe[Skupaj])","v":8}]
[{"$nulls":4},{"$f":"ElementiPonudbe[Stroški]*ElementiPonudbe[Količina]","v":0},{"$f":"_xlfn.RANK.EQ(ElementiPonudbe[[#This Row],[Skupaj]],ElementiPonudbe[Skupaj])","v":8}]
[{"$nulls":4},{"$f":"ElementiPonudbe[Stroški]*ElementiPonudbe[Količina]","v":0},{"$f":"_xlfn.RANK.EQ(ElementiPonudbe[[#This Row],[Skupaj]],ElementiPonudbe[Skupaj])","v":8}]
[{"$nulls":4},{"$f":"ElementiPonudbe[Stroški]*ElementiPonudbe[Količina]","v":0},{"$f":"_xlfn.RANK.EQ(ElementiPonudbe[[#This Row],[Skupaj]],ElementiPonudbe[Skupaj])","v":8}]
[{"$nulls":4},{"$f":"ElementiPonudbe[Stroški]*ElementiPonudbe[Količina]","v":0},{"$f":"_xlfn.RANK.EQ(ElementiPonudbe[[#This Row],[Skupaj]],ElementiPonudbe[Skupaj])","v":8}]
[{"$nulls":4},{"$f":"ElementiPonudbe[Stroški]*ElementiPonudbe[Količina]","v":0},{"$f":"_xlfn.RANK.EQ(ElementiPonudbe[[#This Row],[Skupaj]],ElementiPonudbe[Skupaj])","v":8}]
[{"$nulls":4},{"$f":"ElementiPonudbe[Stroški]*ElementiPonudbe[Količina]","v":0},{"$f":"_xlfn.RANK.EQ(ElementiPonudbe[[#This Row],[Skupaj]],ElementiPonudbe[Skupaj])","v":8}]
[{"$nulls":4},{"$f":"ElementiPonudbe[Stroški]*ElementiPonudbe[Količina]","v":0},{"$f":"_xlfn.RANK.EQ(ElementiPonudbe[[#This Row],[Skupaj]],ElementiPonudbe[Skupaj])","v":8}]
[1,{"$nulls":3},{"$f":"ElementiPonudbe[Stroški]*ElementiPonudbe[Količina]","v":0},{"$f":"_xlfn.RANK.EQ(ElementiPonudbe[[#This Row],[Skupaj]],ElementiPonudbe[Skupaj])","v":8}]
[2,null,null,"Delna vsota",{"$f":"SUBTOTAL(109,ElementiPonudbe[Skupaj])","v":{"v":443.18999999999994,"d":"443.19 €"}},{"$f":"SUBTOTAL(109,ElementiPonudbe[[ ]])","v":164}]
[4,null,null,"Davčna stopnja",{"v":0.075,"d":"7.50%"}]
[5,null,null,"Davki",{"$f":"StopnjaObdavčitve*ElementiPonudbe[[#Totals],[Skupaj]]","v":{"v":33.23924999999999,"d":"33.24 €"}}]
[{"$nulls":3},"Skupna vsota",{"$f":"Davki+ElementiPonudbe[[#Totals],[Skupaj]]","v":{"v":476.4292499999999,"d":"476.43 €"}}]
[]
[]
[]
[null,"PREGLED MATERIALOV IN STROŠKOV"]
[]
[]
[null,null,"SKUPNO","OPOMBE"]
[null,{"$f":"INDEX(ElementiPonudbe[],MATCH(A31,ElementiPonudbe[[ ]],0),2)","v":"Stroški delavcev"},{"$f":"INDEX(ElementiPonudbe[],MATCH(A31,ElementiPonudbe[[ ]],0),4)","v":{"v":200,"d":"$200.00"}}]
[null,{"$f":"INDEX(ElementiPonudbe[],MATCH(A32,ElementiPonudbe[[ ]],0),2)","v":"2 x 8 x 10 lesa"},{"$f":"INDEX(ElementiPonudbe[],MATCH(A32,ElementiPonudbe[[ ]],0),4)","v":{"v":99.39999999999999,"d":"$99.40"}}]
[null,{"$f":"INDEX(ElementiPonudbe[],MATCH(A33,ElementiPonudbe[[ ]],0),2)","v":"2 x 8 x 10 lesa"},{"$f":"INDEX(ElementiPonudbe[],MATCH(A33,ElementiPonudbe[[ ]],0),4)","v":{"v":33.75,"d":"$33.75"}}]
[null,{"$f":"INDEX(ElementiPonudbe[],MATCH(A33,ElementiPonudbe[[ ]],0),2)","v":"2 x 8 x 10 lesa"},{"$f":"INDEX(ElementiPonudbe[],MATCH(A33,ElementiPonudbe[[ ]],0),4)","v":{"v":33.75,"d":"$33.75"}}]
[null,{"$f":"INDEX(ElementiPonudbe[],MATCH(A34,ElementiPonudbe[[ ]],0),2)","v":"Rokavice, usnjene"},{"$f":"INDEX(ElementiPonudbe[],MATCH(A34,ElementiPonudbe[[ ]],0),4)","v":{"v":15.5,"d":"$15.50"}}]